Workbook

Sheet Menu
A1: Ceci est une calculatrice d'aide aux décisions d'affaire à la ferme qui comporte 6 feuilles de travail. Certains champs doivent être remplis par l'utilisateur. Elle peut avoir 12 colonnes de largeur et 95 rangées.
A2: Menu - Calculateur des coûts des terres
A15: Cet outil de Calculateur des coûts des terres consiste en une série de feuilles de calcul qui vous permettent d'examiner ce qu'il en coûte de posséder un bien-fonds et ce que vous pouvez vous permettre de payer en échange.
A17: Conçu par Rob Gamble
A18: Chef de programme, Genres d'entreprises et questions financières
A19: Ministère de l'agriculture et de l'alimentation, Guelph
A20: Courriel: rob.gamble@omaf.gov.on.ca
A22: Décembre 2000
A24: fin de la feuille de calcul

Sheet Calculateur des coûts des terre
A1: Calculateur des coûts des terres
B2: Option 1 | C2: Option 2 | D2: Option 3 | E2: Option 4
A3: Flux monétaire net par année | B3: 2418 | C3: 100 | D3: 40 | E3: 20
A4: Prix de vente actuel | B4: 15000 | C4: 1200 | D4: 1200 | E4: 1200
A5: Taux d'escompte | B5: 0.08 | C5: 0.08 | D5: 0.05 | E5: 0.05
A6: Durée de l'investissement | B6: 12 | C6: 10 | D6: 10 | E6: 10
A7: Augmentation annuelle du coût du terrain | B7: 0.03 | C7: 0.03 | D7: 0.03 | E7: 0.03
A8: Taux d'imposition
A9: Taux marginal d'imposition | B9: 0.5 | C9: 0.5 | D9: 0.5 | E9: 0.5
A10: % des gains en capital | B10: 0.6666 | C10: 0.75 | D10: 0.75 | E10: 0.75
A11: Taux d'impôt applicable aux gains de capital | B11: =B10*B9 -> 0.3333 | C11: =C10*C9 -> 0.375 | D11: =D10*D9 -> 0.375 | E11: =E10*E9 -> 0.375
A13: Valeur actuelle du flux de trésorerie net (A) | B13: =PV(B5,B6,-B3) -> 18222.23664 | C13: =PV(C5,C6,-C3) -> 671.0081399 | D13: =PV(D5,D6,-D3) -> 308.8693972 | E13: =PV(E5,E6,-E3) -> 154.4346986
A14: Valeur future du bien-fonds | B14: =FV(B7,B6,,-B4) -> 21386.4133 | C14: =FV(C7,C6,,-C4) -> 1612.699655 | D14: =FV(D7,D6,,-D4) -> 1612.699655 | E14: =FV(E7,E6,,-E4) -> 1612.699655
A15: Valeur future du bien actualisée à sa valeur actuelle (B) | B15: =PV(B5,B6,,-B14) -> 8492.838971 | C15: =PV(C5,C6,,-C14) -> 746.9919785 | D15: =PV(D5,D6,,-D14) -> 990.0576923 | E15: =PV(E5,E6,,-E14) -> 990.0576923
A16: Valeur future moins le prix d'achat | B16: =B14-B4 -> 6386.413303 | C16: =C14-C4 -> 412.6996552 | D16: =D14-D4 -> 412.6996552 | E16: =E14-E4 -> 412.6996552
A17: Valeur présente de ces gains futurs | B17: =PV(B5,B6,,-B16) -> 2536.132591 | C17: =PV(C5,C6,,-C16) -> 191.1597928 | D17: =PV(D5,D6,,-D16) -> 253.3617881 | E17: =PV(E5,E6,,-E16) -> 253.3617881
A18: Impôt sur les gains en capital (C) | B18: =B17*B11 -> 845.2929925 | C18: =C17*C11 -> 71.68492231 | D18: =D17*D11 -> 95.01067053 | E18: =E17*E11 -> 95.01067053
A20: Valeur actuelle du bien-fonds (A plus B moins C) | B20: =B13+B15-B18 -> 25869.78262 | C20: =C13+C15-C18 -> 1346.315196 | D20: =D13+D15-D18 -> 1203.916419 | E20: =E13+E15-E18 -> 1049.48172
A23: Autres méthodes de calcul
A24: Valeur productive du bien-fonds (technique du revenu) | B24: =B3/B5 -> 30225 | C24: =C3/C5 -> 1250 | D24: =D3/D5 -> 800 | E24: =E3/E5 -> 400
A25: Valeur économique (accomptes pour gains de capital) | B25: =B3/(B5-B7) -> 48360 | C25: =C3/(C5-C7) -> 2000 | D25: =D3/(D5-D7) -> 2000 | E25: =E3/(E5-E7) -> 1000
A29: Conçu par Rob Gamble
A30: Chef de programme, Genres d'entreprises et questions financières
A31: MAAARO
A32: 1 888 466-2372, poste 64350 ou 1 519 826-4350
A33: Courriel: rgamble@omafra.gov.on.ca
A35: fin de la feuille de calcul

Sheet Ce que vous pouvez payer
A1: COMBIEN POUVEZ-VOUS VOUS PERMETTRE DE PAYER POUR UN BIEN-FONDS?
A2: DÉTAILS DE L'INVESTISSEMENT
A3: Dimension du bien-fonds à acheter (acres) | B3: 100
A4: Prix à l'acre | B4: 2000
A5: Prix total du bien-fonds | B5: =B3*B4 -> 200000
A6: Versement initial | B6: 25000 | C6: (A)
A7: Montant du prêt ($) | B7: =B5-B6 -> 175000
A8: Taux d'intérêt annuel (%) | B8: 7
A9: Période d'amortissement du prêt (années) | B9: 15
A10: Nombre de versements par année | B10: 1
A11: Périodes de calcul des intérêts par année | B11: 2
A12: =IF(OR(B9<1,),"WARNING: LOANS MUST BE AT LEAST ONE YEAR IN LENGTH",IF(OR(B10<1),"WARNING: MINIMUM OF ONE PAYMENT PER YEAR REQUIRED",IF(OR(B11<1),"WARNING: AT LEAST ONE COMPOUND PER YEAR REQUIRED",""))) -> 
A13: Paiement du prêt par période | B13: =IF(AND(AND(AND(AND(B9>=1,B10>=1),B11>=1),B7>=0),B8>=0),IF(B8=0,B7/B9/B10,((1+(B8/(B11*100)))^(B11/B10)-1)/(1-((1/(1+((1+(B8/(B11*100)))^(B11/B10)-1))^(B10*B9))))*B7),#VALUE!) -> 19362.99047
A14: Totals des paiements | B14: =B13*B10*B9 -> 290444.857
A15: Bâtiments et équipement
A16: Valeur de votre équipement actuel | B16: 100000
A17: Valeur de vos bâtiments actuels | B17: 100000
A18: ENCAISSEMENT
A19: Prévision du revenu monétaire provenant de la ferme (y compris le montant provenant du bien-fonds à acheter) | B19: 250000
A20: Autre revenu régulier (y compris le revenu du conjoint) | B20: 50000
A21: Encaisse totale | B21: =B19+B20 -> 300000 | C21: (B)
A22: DÉCAISSEMENT
A23: Tous les coûts liés à l'exploitation, y compris le bétail et les dépenses en espèces prévues pour le bien-fonds à acheter | B23: 180000
A24: Remboursement annuel du capital et des intérêts d'une dette existante | B24: 30000
A25: Fonds de renouvellement de l'équipement 10 % | B25: =B16*0.1 -> 10000
A26: Fonds de renouvellement des bâtiments 5 % | B26: =B17*0.05 -> 5000
A27: Frais de subsistance de la famille | B27: 30000
A28: Impôt sur le revenu annuel à payer | B28: 5000
A29: Équipement et bâtiments supplémentaires, au besoin, en raison de l'achat du bien-fonds | B29: 0
A30: Décaissement total | B30: =SUM(B23:B29) -> 260000 | C30: (C)
A31: Calculs
A32: Ajustement au comptant disponible en fonction du risque | B32: 0.25 | C32: (D)
A33: Prévision du comptant disponible (B - C) | B33: =B21-B30 -> 40000 | C33: (E)
A34: Moins : Marge de sécurité (D) *(E) | B34: =B33*B32 -> 10000 | C34: (F)
A35: Montant disponible pour le service annuel de la dette (E - F) | B35: =B33-B34 -> 30000 | C35: (G)
A36: Montant nécessaire pour le service de la dette | B36: =B13 -> 19362.99047
A37: Solde (si négatif, les besoins entraînés par la dette sont trop élevés) | B37: =B35-B36 -> 10637.00953
A39: Dette maximale que vous pouvez assumer
A40: Facteur d'amortissement | B40: =B13/B7 -> 0.1106456598 | C40: (H)
A41: Montant de dette qui peut être servie (G divisé par H) | B41: =B35/B40 -> 271135.8046 | C41: (I)
A42: Montant en dollars disponible pour l'achat du bien (A) + (I) | B42: =B41+B6 -> 296135.8046 | C42: (J)
A44: Voici une grille pour organiser vos prêts actuels ainsi qu'une calculatrice de prêt
B46: Prêts actuels | D46: Revised: Nov 88
A47: Passif à court terme | B47: Montant | C47: Taux | D47: Mois | E47: Intérêt
A48: (Moins d'une année) | B48: dû | C48: d'intérêt | D48: restants | E48: dû
A49: Prêts d'exploitation
B50: 0 | C50: 0 | D50: 0 | E50: =B50*C50/100*D50/12 -> 0
B51: 0 | C51: 0 | D51: 0 | E51: =B51*C51/100*D51/12 -> 0
B52: 0 | C52: 0 | D52: 0 | E52: =B52*C52/100*D52/12 -> 0
A53: Crédit fournisseur
B54: 0 | C54: 0 | D54: 0 | E54: =B54*C54/100*D54/12 -> 0
B55: 0 | C55: 0 | D55: 0 | E55: =B55*C55/100*D55/12 -> 0
B56: 0 | C56: 0 | D56: 0 | E56: =B56*C56/100*D56/12 -> 0
B57: 0 | C57: 0 | D57: 0 | E57: =B57*C57/100*D57/12 -> 0
B58: 0 | C58: 0 | D58: 0 | E58: =B58*C58/100*D58/12 -> 0
A59: Total partiel | B59: =SUM(B50:B58) -> 0 | E59: =SUM(E50:E58) -> 0
A60: Passif à long terme
A61: (Plus d'une année) | B61: Solde moyen | C61: Paiments | D61: Paiements | E61: Paiement
B62: à payer | C62: du capital | D62: des intérêts | E62: total
A63: Hypothèques
B64: 0 | C64: 0 | D64: 0 | E64: =C64+D64 -> 0
B65: 521 | C65: 0 | D65: 0 | E65: =C65+D65 -> 0
B66: 0 | C66: 0 | D66: 0 | E66: =C66+D66 -> 0
A67: Prêt à terme
B68: 0 | C68: 0 | D68: 0 | E68: =C68+D68 -> 0
B69: 0 | C69: 0 | D69: 0 | E69: =C69+D69 -> 0
B70: 0 | C70: 0 | D70: 0 | E70: =C70+D70 -> 0
B71: 0 | C71: 0 | D71: 0 | E71: =C71+D71 -> 0
A72: Autre financement
B73: 0 | C73: 0 | D73: 0 | E73: =C73+D73 -> 0
B74: 0 | C74: 0 | D74: 0 | E74: =C74+D74 -> 0
B75: 0 | C75: 0 | D75: 0 | E75: =C75+D75 -> 0
A76: Total partiel | B76: =SUM(B64:B75) -> 521 | C76: =SUM(C64:C75) -> 0 | D76: =SUM(D64:D75) -> 0 | E76: =SUM(E64:E75) -> 0
A79: COMPARAISON DES TAUX INITIAUX
B80: PRÊT A | C80: PRÊT B | D80: PRÊT C+A101
A81: Montant du prêt ($) | B81: 5000 | C81: 100000 | D81: 120000
A82: Taux d'intérêt annuel (%) | B82: 7 | C82: 12 | D82: 11.25
A83: Période d'amortissement du prêt (années) | B83: 15 | C83: 15 | D83: 20
A84: Nombre de versements par année | B84: 1 | C84: 12 | D84: 12
A85: Périodes de fois où l'intérêt est composé par année | B85: 1 | C85: 2 | D85: 2
A86: =IF(OR(OR(B83<1,C83<1),D83<1),"REMARQUE: LES PRÊTS DOIVENT AVOIR UNE DURÉE D'AU MOINS UN AN.",IF(OR(OR(B84<1,C84<1),D84<1),"REMARQUE: AU MOINS UN PAIEMENT PAR ANNÉE EST REQUIS.",IF(OR(OR(B85<1,C85<1),D85<1),"REMARQUE: L'INTÉRÊT DOIT ÊTRE COMPOSÉ AU MOINS UNE FOIS PAR ANNÉE.",""))) -> 
A87: PAIEMENT | B87: =IF(AND(AND(AND(AND(B83>=1,B84>=1),B85>=1),B81>=0),B82>=0),IF(B82=0,B81/B83/B84,((1+(B82/(B85*100)))^(B85/B84)-1)/(1-((1/(1+((1+(B82/(B85*100)))^(B85/B84)-1))^(B84*B83))))*B81),#VALUE!) -> 548.9731235 | C87: =IF(AND(AND(AND(AND(C83>=1,C84>=1),C85>=1),C81>=0),C82>=0),IF(C82=0,C81/C83/C84,((1+(C82/(C85*100)))^(C85/C84)-1)/(1-((1/(1+((1+(C82/(C85*100)))^(C85/C84)-1))^(C84*C83))))*C81),#VALUE!) -> 1181.609624 | D87: =IF(AND(AND(AND(AND(D83>=1,D84>=1),D85>=1),D81>=0),D82>=0),IF(D82=0,D81/D83/D84,((1+(D82/(D85*100)))^(D85/D84)-1)/(1-((1/(1+((1+(D82/(D85*100)))^(D85/D84)-1))^(D84*D83))))*D81),#VALUE!) -> 1238.221488
A88: INTÉRÊT TOTAL | B88: =B87*B83*B84-B81 -> 3234.596853 | C88: =C87*C83*C84-C81 -> 112689.7324 | D88: =D87*D83*D84-D81 -> 177173.1571
B89: =B87*B83*B84 -> 8234.596853
A90: ÉCONOMIE SUR PAIEMENT (PERTE) PAR RAPPORT À "A" | C90: =B87-C87 -> -632.6365008 | D90: =B87-D87 -> -689.2483644
A91: ÉCONOMIE TOTALE SUR INTÉRÊT (PERTE) PAR RAPPORT À "A" | C91: =B88-C88 -> -109455.1355 | D91: =B88-D88 -> -173938.5602
A94: fin de la feuille de calcul

Sheet Calcul de la valeur
A1: FEUILLE DE CALCUL POUR DÉTERMINER LA VALEUR DU BIEN-FONDS
A2: Acres cultivés existants | B2: 800
A3: Acres cultivés qui seront achetés | B3: 200
A4: Prévision du gain en capital annuel | B4: 0.03
A5: Salaires annuels de la main-d'œuvre et des gestionnaires | B5: 20000
A6: Taux d'actualisation | B6: 5
A7: Valeur marchande d'un bien comparable (par acre) | B7: 2400
A8: Valeur des bâtiments et de la machinerie
A9: Bâtiments actuels | B9: 25000
A10: Machinerie actuelle | B10: 110000
A11: Autres bâtiments | B11: 0
A12: Autre machinerie | B12: 15000
A13: ÉTAPE 1. ESTIMATION DU REVENU BRUT
A14: Prévision du rendement et du prix des cultures (rotation normale) qui seront produites sur le nouveau bien-fonds
A15: Culture | B15: Acres | C15: Rendement | D15: Prix | E15: Revenu total
A16: Maïs | B16: 80 | C16: 120 | D16: 2.5 | E16: =B16*C16*D16 -> 24000
A17: Soya | B17: 60 | C17: 40 | D17: 6 | E17: =B17*C17*D17 -> 14400
A18: Blé | B18: 60 | C18: 35 | D18: 3 | E18: =B18*C18*D18 -> 6300
A19: Autre culture | B19: 0 | C19: 0 | D19: 0 | E19: =B19*C19*D19 -> 0
A20: Autre culture | B20: 0 | C20: 0 | D20: 0 | E20: =B20*C20*D20 -> 0
A21: Total des acres cultivés qui seront achetés = | B21: =SUM(B16:B20) -> 200
A22: Autre revenu | E22: 8000
A23: Revenu total | E23: =SUM(E16+E17+E22) -> 46400
A24: Revenu par acre : | E24: =E23/B21 -> 232
A25: ÉTAPE 2. ESTIMATION DU COÛT DE PRODUCTION
A26: A. Coûts d'exploitation
A27: 1) Total des dépenses d'exploitation annuelles du bien-fonds actuel | C27: 200000
A28: 2) Déduire :
A29: Intérêts sur prêts pour immobilisations | B29: 10000
A30: Portion des dépenses totales pour le bétail, y compris une portion des coûts de machinerie moins l'intérêt sur le prêt | B30: 0
A31: Dépenses supplémentaires qui doivent venir à terme | B31: 4000
A32: Total | B32: =B29+B30+B31 -> 14000
A33: = Coûts totaux d'exploitation - bien-fonds actuel = | C33: =C27-B32 -> 186000
A34: 3) Coûts d'exploitation par acre cultivé : | B34: =C33/B2 -> 232.5
A35: 4) Ajustement des coûts d'exploitation par acre selon les changements quant aux pratiques de culture du nouveau bien-fonds, par ex., plus de désherbage (+) ou (-) | B35: 2
A37: 5) Coûts d'exploitation prévus par acre cultivé sur le nouveau bien-fonds | C37: =B35+B34 -> 234.5
A39: B. Coûts fixes, main-d'œuvre et gestion
A40: 1) Total des charges fixes annuelles sur la ferme existante :
A41: Amortissement de la portion des bâtiments affectés à la prod. des cultures | B41: 0.05 | C41: =(B9*B41) -> 1250
A42: Amortissement de la portion de la machinerie affectée à la prod. des cultures | B42: 0.1 | C42: =+(B10*B42) -> 11000
A43: Intérêt sur les investisements dans les bâtiments et la machinerie affectés à la production des cultures | B43: 0.07 | C43: =(B9+B10)*B43 -> 9450
A44: Main-d'œuvre et gestion de l'exploitation des cultures | B44: =+B5 -> 20000
A45: Total des coûts fixes sur la ferme actuelle | C45: =SUM(B41:B44) -> 20000.22
A47: 2) Plus:
A48: Amortissement de la portion des bâtiments (5 %) et de la machinerie (10 %) supplémentaires affectés à la production des cultures | B48: 0.05 | C48: =B11*B48 -> 0
A49: Coût d'investement dans les bâtiments et la machinerie supplémentaires (10 %) affectés à la production des cultures | B49: 0.1 | C49: =B12*B49 -> 1500
A50: Frais de gestion | B50: 2000
A51: Total partiel | C51: =SUM(B48:B50) -> 2000.15
A52: Total des coûts fixes | C52: =SUM(C45+C51) -> 22000.37
A54: 3) Coûts fixes prévus par acre cultivé :
A55: =Total des coûts fixes/Acres cultivés existants + Acres cultivés à acheter = | C55: =C52/(B2+B3) -> 22.00037
A57: C. Total des coûts
A58: Coûts totaux prévus par acre cultivé sur nouveau bien-fonds :
A59: = Coûts d'exploitation prévus + coûts fixes prévus = | C59: =C37+C55 -> 256.50037
A61: ÉTAPE 3. RENDEMENT DE LA TERRE
A63: Rendement de la terre par acre pour l'achat de bien-fonds proposé
A64: = Revenu par acre cultivé - total des coûts prévus par acre cultivé = | C64: =E24-C59 -> -24.50037
A66: ÉTAPE 4. ACTUALISATION (VALEUR DU BIEN-FONDS)
A68: 1) Valeur productive du bien-fonds :
A69: = Rendement de la terre X 100/ taux d'actualisation = | C69: =C64/B6 -> -4.900074 | D69: selon un nombre d'années infini
A71: 2) Valeur économique du bien-fonds (incluant gain en capital possible) :
A72: = Rendement de la terre x 100/ taux d'actualisation - gain en capital = | C72: =C64/(B6-B4) -> -4.929651911
A74: 3) Valeur marchande du bien-fonds (signalé dans la région) : | C74: =B7 -> 2400
A76: 4) Écarts :
A77: Valeur marchande moins valeur productive | C77: =C74-C69 -> 2404.900074
A78: Valeur marchande moins valeur économique | C78: =C74-C72 -> 2404.929652
A80: fin de la feuille de calcul

Sheet Flux monétaire(KSU)
A1: DOIS-JE ACHETER PLUS DE TERRES? | D1: RENDEMENT NET/ACRE d'après un financement total
A2: adapté de KSU Extension Publication
A4: Taux d'intérêt | B4: 7 | D4: PRIX DU | G4: VALEUR BRUTE DE LA RÉCOLTE
A5: Montant financé - montant total en dollars | B5: 100000 | D5: BIEN-FONDS | E5: =F5-10 -> 170 | F5: =G5-10 -> 180 | G5: =H5-10 -> 190 | H5: =$B$10 -> 200 | I5: =H5+10 -> 210 | J5: =I5+10 -> 220 | K5: =J5+10 -> 230
A6: Durée du financement (années) | B6: 20 | D6: =D7-100 -> 1600 | E6: =(+E$5-($B$8+$B$9))*($B$7/100)-PMT($B$4/100,$B$6,-($D6)) -> -124.0286812 | F6: -114.0286812 | G6: -104.0286812 | H6: -94.02868119 | I6: -84.02868119 | J6: -74.02868119 | K6: -64.02868119
A7: Acres cultivés ( % ) | B7: 100 | D7: =D8-100 -> 1700 | E7: -133.4679738 | F7: -123.4679738 | G7: -113.4679738 | H7: -103.4679738 | I7: -93.46797376 | J7: -83.46797376 | K7: -73.46797376
A8: Coût de production par acre | B8: 120 | D8: =D9-100 -> 1800 | E8: -142.9072663 | F8: -132.9072663 | G8: -122.9072663 | H8: -112.9072663 | I8: -102.9072663 | J8: -92.90726634 | K8: -82.90726634
A9: Amortissement par acre cultivé | B9: 23 | D9: =D10-100 -> 1900 | E9: -152.3465589 | F9: -142.3465589 | G9: -132.3465589 | H9: -122.3465589 | I9: -112.3465589 | J9: -102.3465589 | K9: -92.34655891
A10: Prévision de la valeur brute de la récolte par acre incluant paiments du gouv. | B10: 200 | D10: =$B$12 -> 2000 | E10: -161.7858515 | F10: -151.7858515 | G10: -141.7858515 | H10: -131.7858515 | I10: -121.7858515 | J10: -111.7858515 | K10: -101.7858515
A11: Nombre d'acres à acheter | B11: 100 | D11: =D10+100 -> 2100 | E11: -171.2251441 | F11: -161.2251441 | G11: -151.2251441 | H11: -141.2251441 | I11: -131.2251441 | J11: -121.2251441 | K11: -111.2251441
A12: Coût par acre | B12: 2000 | D12: =D11+100 -> 2200 | E12: -180.6644366 | F12: -170.6644366 | G12: -160.6644366 | H12: -150.6644366 | I12: -140.6644366 | J12: -130.6644366 | K12: -120.6644366
A13: Revenu annuel prévu du bien-fonds acheté d'après le financement | B13: =((($B$10-($B$8+$B$9))*$B$11)*($B$7/100)-PMT($B$4/100,$B$6,-($B$5))) -> -3739.292574 | D13: =D12+100 -> 2300 | E13: -190.1037292 | F13: -180.1037292 | G13: -170.1037292 | H13: -160.1037292 | I13: -150.1037292 | J13: -140.1037292 | K13: -130.1037292
A14: Revenu annuel pour l'achat de terre d'après un financement à 100 % | B14: =(($B$10-($B$8+$B$9))*$B$11)*($B$7/100)-PMT($B$4/100,$B$6,-($B$11*$B$12)) -> -13178.58515 | D14: =D13+100 -> 2400 | E14: -199.5430218 | F14: -189.5430218 | G14: -179.5430218 | H14: -169.5430218 | I14: -159.5430218 | J14: -149.5430218 | K14: -139.5430218
A15: Revenu annuel pour l'achat de terre d'après le flux monétaire net | B15: =(($B$10-$B$8)*$B$11)*($B$7/100)-PMT($B$4/100,$B$6,-($B$5)) -> -1439.292574
A16: (excluant l'amortissement, non ajusté en fonction du coût de renonciation) | D16: *** FORMULE POUR CALCULER LE RENDEMENT NET/ACRE=
E17: (VALEUR BRUTE DE LA RÉCOLTE-(PROD. RÉCOLTE$+AMORT.$)*%ACRES CULTIVÉS
E18: - PAIEMENT ANNUEL DU PRÊT
D20: FLUX MONÉTAIRE d'après le montant financé sans amortissement
D22: MONTANT
D23: EMPRUNTÉ | G23: VALEUR BRUTE DE LA RÉCOLTE
D24: PAR ACRE | E24: =F24-10 -> 170 | F24: =G24-10 -> 180 | G24: =H24-10 -> 190 | H24: =$B$10 -> 200 | I24: =H24+10 -> 210 | J24: =I24+10 -> 220 | K24: =J24+10 -> 230
D25: =IF($D$28>300,+D26-100,0) -> 600 | E25: =(+E$5-$B$8)*($B$7/100)-PMT($B$4/100,$B$6,-($D25)) -> -6.635755446 | F25: 3.364244554 | G25: 13.36424455 | H25: 23.36424455 | I25: 33.36424455 | J25: 43.36424455 | K25: 53.36424455
D26: =IF($D$28>200,+D27-100,0) -> 700 | E26: -16.07504802 | F26: -6.07504802 | G26: 3.92495198 | H26: 13.92495198 | I26: 23.92495198 | J26: 33.92495198 | K26: 43.92495198
D27: =IF(D28>100,+D28-100,0) -> 800 | E27: -25.51434059 | F27: -15.51434059 | G27: -5.514340595 | H27: 4.485659405 | I27: 14.48565941 | J27: 24.48565941 | K27: 34.48565941
D28: =IF(D29>0,D29-100,0) -> 900 | E28: -34.95363317 | F28: -24.95363317 | G28: -14.95363317 | H28: -4.953633169 | I28: 5.046366831 | J28: 15.04636683 | K28: 25.04636683
D29: =$B$5/B11 -> 1000 | E29: -44.39292574 | F29: -34.39292574 | G29: -24.39292574 | H29: -14.39292574 | I29: -4.392925743 | J29: 5.607074257 | K29: 15.60707426
D30: =D29+100 -> 1100 | E30: -53.83221832 | F30: -43.83221832 | G30: -33.83221832 | H30: -23.83221832 | I30: -13.83221832 | J30: -3.832218318 | K30: 6.167781682
D31: =D30+100 -> 1200 | E31: -63.27151089 | F31: -53.27151089 | G31: -43.27151089 | H31: -33.27151089 | I31: -23.27151089 | J31: -13.27151089 | K31: -3.271510892
D32: =D31+100 -> 1300 | E32: -72.71080347 | F32: -62.71080347 | G32: -52.71080347 | H32: -42.71080347 | I32: -32.71080347 | J32: -22.71080347 | K32: -12.71080347
D33: =D32+100 -> 1400 | E33: -82.15009604 | F33: -72.15009604 | G33: -62.15009604 | H33: -52.15009604 | I33: -42.15009604 | J33: -32.15009604 | K33: -22.15009604
D35: *** FORMULE POUR CALCULER LE FLUX MONÉTAIRE=
E36: (MONTANT EMPRUNTÉ/ACRE-PRODUIT DE LA RÉCOLTE $) * % ACRES CULTIVÉS
E37: =- PAIEMENT ANNUEL DU PRÊT
A40: fin de la feuille de calcul

Sheet Blank
A1: COMBIEN POUVEZ-VOUS VOUS PERMETTRE: DE PAYER POUR UN BIEN-FONDS?
A2: DÉTAILS DE L'ACHAT | B2: Exemple | D2: Votre ferme
A3: Quantité de terre à acheter (acres) | B3: 100
A4: Prix à l'acre | B4: 2000
A5: Coût total du bien-fonds | B5: =B3*B4 -> 200000
A6: Versement initial | B6: 25000 | C6: (A) | E6: (A)
A7: Bâtiments et équipement
A8: Valeur de votre équipement actuel | B8: 100000
A9: Valeur de vos bâtiments actuels | B9: 100000
A11: ENCAISSEMENT
A12: Prévision du revenu monétaire provenant de la ferme (y compris le montant provenant du bien-fonds à acheter) | B12: 250000
A13: Autre revenu régulier (y compris le revenu du conjoint) | B13: 50000
A14: Encaisse totale | B14: =B12+B13 -> 300000 | C14: (B) | E14: (B)
A16: DÉCAISSEMENT
A17: Tous les coûts liés à l'exploitation, y compris le bétail et les dépenses en espèces prévues pour le bien-fonds à acheter | B17: 180000
A18: Rembours. annuel du capital et des intérêts d'une dette existante | B18: 30000
A19: Fonds de renouvellement de l'équipement 10 % | B19: =B8*0.1 -> 10000
A20: Fonds de renouvellement des bâtiments 5 % | B20: =B9*0.05 -> 5000
A21: Frais de subsistance de la famille | B21: 30000
A22: Impôt sur le revenu annuel à payer | B22: 5000
A23: Équipement et bâtiments supplémentaires, au besoin, en raison de l'achat du bien-fonds | B23: 0
A24: Décaissement total | B24: =SUM(B17:B23) -> 260000 | C24: (C) | E24: (C)
A26: CALCULS
A27: Ajustement au comptant disponible en fonction du risque | B27: 0.25 | C27: (D) | E27: (D)
A28: Prévision du montant liquide disponible (B - C) | B28: =B14-B24 -> 40000 | C28: (E) | E28: (E)
A29: Moins : Marge de sécurité (D) *(E) | B29: =B28*B27 -> 10000 | C29: (F) | E29: (F)
A30: Montant disponible pour le service annuel de la dette (E - F) | B30: =B28-B29 -> 30000 | C30: (G) | E30: (G)
A32: Dette maximale que vous pouvez assumer
A33: Facteur d'amortissement | B33: 0.1098 | C33: (H) | E33: (H)
A34: Montant de la dette qui peut être servie (G divisé par H) | B34: =B30/B33 -> 273224.0437 | C34: (I) | E34: (I)
A35: Montant en dollars disponible pour l'achat du bien (A) + (I) | B35: =B34+B6 -> 298224.0437 | C35: (J) | E35: (J)
A39: fin de la feuille de calcul
